bitfinex/quotes_SOLUSD_20241113
["timestamp","ask_amount","ask_price","bid_price","bid_amount"]
[1731499007874,13.93644966,207.09,207.04,7.2449]
[1731499008075,13.93644966,207.1,207.04,7.2449]
[1731499008380,13.93644966,207.11,207.04,7.2449]
[1731499009783,13.93644966,207.1,207.04,7.2449]
[1731499010282,4.8283,207.12,207.04,7.2449]
[1731499010283,13.93644966,207.11,207.04,7.2449]
[1731499010481,13.93644966,207.1,207.04,7.2449]
[1731499010792,13.93644966,207.08,207.02,2.8982]
[1731499011193,13.93644966,207.09,207.02,10.1438]
[1731499011769,13.93644966,207.11,207.02,10.1438]
[1731499013887,13.93644966,207.13,207.02,24.6351]
[1731499014877,13.93644966,207.11,207.02,10.1438]
[1731499017493,13.93644966,207.13,207.02,10.1438]
[1731499017969,18.76434966,207.13,207.02,10.1438]
[1731499018169,13.93644966,207.11,207.02,10.1438]
[1731499019791,13.93644966,207.13,207.02,10.1438]
[1731499020675,18.76384966,207.15,207.03,43.776884]
[1731499020872,13.93644966,207.15,207.03,43.776884]
[1731499021795,20.0,207.19,207.05,23.776884]
[1731499021796,13.93644966,207.17,207.05,23.776884]
[1731499022388,13.93644966,207.15,207.06,32.3347]
[1731499023110,13.93644966,207.15,207.07,10.1414]
[1731499023793,18.76394966,207.15,207.07,10.1414]
[1731499024097,7.46849955,207.16,207.08,13.0602]
[1731499024306,7.46849955,207.16,207.09,43.776884]
[1731499024476,4.8259,207.22,207.11,23.776884]
[1731499025197,4.8259,207.22,207.12,10.1389]
[1731499025397,13.93644966,207.19,207.12,10.1389]
[1731499026301,13.93644966,207.18,207.12,10.1389]
[1731499026800,18.76314966,207.18,207.12,7.2421]
[1731499027014,13.93644966,207.17,207.1,30.6991]
[1731499027900,18.76314966,207.18,207.1,40.839]
[1731499029187,18.76354966,207.16,207.1,37.9419]
[1731499029380,13.93644966,207.14,207.1,30.6991]
[1731499030399,13.93644966,207.12,207.08,13.0602]
[1731499031288,18.76454966,207.12,207.08,13.0602]
[1731499032003,18.76454966,207.12,207.05,39.7614]
[1731499032204,13.93644966,207.08,207.05,32.5169]
[1731499032799,13.93644966,207.1,207.05,35.4147]
[1731499032979,13.93644966,207.1,207.05,32.5169]
[1731499033397,18.76504966,207.1,207.05,32.5169]
[1731499034197,13.93644966,207.12,207.05,35.4147]
[1731499035297,13.93644966,207.14,207.05,42.6593]
[1731499036905,30.4869,207.26,207.07,12.0575]
[1731499037110,13.93644966,207.22,207.11,52.5169]
[1731499037398,13.93644966,207.24,207.13,55.834384]
[1731499037597,13.93644966,207.27,207.13,55.834384]
[1731499037786,13.93644966,207.27,207.13,55.934384]
[1731499038108,13.93644966,207.28,207.13,55.934384]
[1731499038403,4.8241,207.29,207.13,55.934384]
[1731499038404,13.93644966,207.27,207.13,55.834384]
[1731499038788,13.93644966,207.27,207.14,24.6208]
[1731499038984,13.93644966,207.27,207.15,43.776884]
[1731499039194,18.76094966,207.28,207.15,43.776884]
[1731499039903,13.93644966,207.32,207.19,43.776884]
[1731499040110,13.93644966,207.33,207.19,43.776884]
[1731499040607,13.93644966,207.34,207.19,45.99240262]
[1731499041007,13.93644966,207.35,207.19,45.99240262]
[1731499041308,13.93644966,207.35,207.2,44.3519]
[1731499041515,13.93644966,207.35,207.21,43.776884]
[1731499042000,13.93644966,207.35,207.22,24.6113]
[1731499042203,13.93644966,207.35,207.24,23.776884]
[1731499042585,18.75924966,207.35,207.25,23.776884]
[1731499042987,13.93644966,207.31,207.24,20.0]
[1731499043188,13.93644966,207.32,207.23,43.776884]
[1731499043713,13.93644966,207.32,207.24,10.133]
[1731499044405,13.93644966,207.33,207.24,10.133]
[1731499045211,13.93644966,207.31,207.24,10.133]
[1731499045391,13.93644966,207.32,207.24,10.133]
[1731499046105,30.3129,207.49,207.28,12.9393]
[1731499046285,13.93644966,207.46,207.33,20.0]
[1731499046486,0.83689098,207.55,207.36,0.1]
[1731499046703,0.83689098,207.55,207.4,20.1]
[1731499046905,0.83689098,207.55,207.44,12.3353]
[1731499047108,0.4769093,207.62,207.44,12.3353]
[1731499047109,5.2935093,207.62,207.46,20.0]
[1731499047413,5.2935093,207.62,207.47,2.8919]
[1731499047414,13.93644966,207.56,207.47,2.8919]
[1731499047617,13.93644966,207.56,207.47,10.1218]
[1731499048910,22.25966348,207.57,207.47,10.1218]
[1731499050092,27.07696348,207.59,207.47,10.1218]
[1731499050292,22.25966348,207.57,207.47,10.1218]
[1731499052599,27.07736348,207.57,207.47,10.1218]
[1731499053121,22.25966348,207.59,207.47,10.1218]
[1731499053410,22.25966348,207.59,207.47,24.5817]
[1731499054318,22.25966348,207.57,207.47,24.5817]
[1731499056520,27.07696348,207.59,207.47,24.5817]
[1731499057718,22.25966348,207.61,207.48,74.275184]
[1731499058320,0.4769093,207.62,207.49,12.3883]
[1731499058619,0.4769093,207.62,207.5,43.776884]
[1731499059527,0.4769093,207.62,207.52,43.776884]
[1731499060923,0.4769093,207.62,207.54,43.776884]
[1731499061419,0.4769093,207.62,207.55,10.1179]
[1731499061604,0.4769093,207.62,207.57,20.0]
[1731499062315,0.4769093,207.62,207.57,23.776884]
[1731499062529,0.4769093,207.62,207.58,30.1165]
[1731499063619,0.4769093,207.62,207.6,20.0]
[1731499064003,0.4769093,207.62,207.59,12.4577]
[1731499064827,0.4769093,207.62,207.6,2.4084]
[1731499066122,0.4769093,207.62,207.59,12.4577]
[1731499066308,0.4769093,207.62,207.59,20.8876]
[1731499069034,0.4769093,207.62,207.6,43.776884]
[1731499070907,0.4769093,207.62,207.61,26.185184]
[1731499071113,0.4769093,207.62,207.61,46.185184]
[1731499072202,0.4769093,207.62,207.61,79.076384]
[1731499073319,13.88578012,207.76,207.66,20.0]
[1731499073512,18.69868012,207.78,207.67,23.776884]
[1731499074105,0.12549,207.77,207.67,23.776884]
[1731499074309,13.88578012,207.74,207.63,23.776884]
[1731499074525,13.88578012,207.74,207.64,20.0]
[1731499074713,13.88578012,207.74,207.65,23.776884]
[1731499075114,13.88578012,207.74,207.66,20.0]
[1731499075335,13.88578012,207.74,207.67,2.4076]
[1731499076533,13.88578012,207.74,207.67,8.4267]
[1731499077326,13.88578012,207.76,207.67,8.4267]
[1731499078329,18.69878012,207.77,207.69,8.4259]
[1731499078734,13.88578012,207.79,207.69,8.4259]
[1731499079430,13.88578012,207.79,207.69,20.9451]
[1731499080133,18.69838012,207.79,207.69,20.9451]
[1731499080344,13.88578012,207.77,207.69,20.9451]
[1731499081030,13.88578012,207.75,207.69,18.5377]
[1731499081324,13.88578012,207.73,207.69,12.5192]
[1731499082319,18.69978012,207.73,207.69,12.5192]
[1731499082509,13.88578012,207.71,207.65,6.0195]
[1731499082708,13.88578012,207.67,207.61,38.8118]
[1731499082938,13.88578012,207.67,207.61,6.0206]
[1731499083119,13.88578012,207.65,207.59,12.2016]
[1731499083730,13.88578012,207.63,207.57,6.0219]
[1731499084038,13.88578012,207.62,207.57,6.0219]
[1731499084529,14.01127012,207.61,207.54,12.692]
[1731499084735,13.88578012,207.6,207.54,12.692]
[1731499084920,22.25160468,207.6,207.54,12.692]
[1731499085118,0.12549,207.61,207.5,31.0715]
[1731499085119,22.25160468,207.59,207.51,2.4094]
[1731499085432,22.25160468,207.58,207.49,12.099]
[1731499085621,22.25160468,207.56,207.49,12.099]
[1731499085935,22.25160468,207.52,207.49,12.099]
[1731499086434,22.25160468,207.52,207.45,8.4355]
[1731499086617,22.25160468,207.54,207.45,8.4355]
[1731499087433,22.25160468,207.56,207.46,20.0]
[1731499088021,4.8178,207.57,207.46,20.0]
[1731499088412,0.12549,207.56,207.47,8.4348]
[1731499089718,22.25160468,207.58,207.48,23.776884]
[1731499090749,22.25160468,207.56,207.47,8.4348]
[1731499091122,22.25160468,207.56,207.48,20.0]
[1731499091626,27.06960468,207.56,207.47,6.0249]
[1731499092023,22.25160468,207.6,207.47,6.0249]
[1731499092024,22.25160468,207.58,207.48,23.776884]
[1731499092237,22.25160468,207.6,207.49,20.0]
[1731499092426,22.25160468,207.58,207.48,23.776884]
[1731499092731,22.25160468,207.58,207.49,20.0]
[1731499093139,22.25160468,207.6,207.5,23.776884]
[1731499093428,22.25160468,207.62,207.51,20.0]
[1731499093746,0.12549,207.61,207.53,41.7304]
[1731499093924,0.12549,207.59,207.53,39.3212]
[1731499094131,22.25160468,207.56,207.52,12.7222]
[1731499096039,22.25160468,207.6,207.52,21.155]
[1731499096449,0.12549,207.59,207.52,21.155]
[1731499097035,22.25160468,207.56,207.52,12.7222]
[1731499098138,4.8181,207.55,207.48,6.0245]
[1731499098346,22.25160468,207.54,207.48,6.0245]
[1731499098530,22.25160468,207.54,207.48,8.4343]
[1731499099150,4.8181,207.55,207.48,8.4343]
[1731499099344,22.25160468,207.54,207.48,8.4343]
[1731499099552,27.06990468,207.54,207.48,8.4343]
[1731499100229,27.06990468,207.54,207.48,6.0245]
[1731499100848,27.06990468,207.54,207.48,8.4343]
[1731499102647,27.06990468,207.54,207.47,12.1959]
[1731499102952,27.06990468,207.54,207.47,14.6058]
[1731499103551,27.06990468,207.54,207.47,12.1959]
[1731499104257,27.06990468,207.54,207.47,14.6058]
[1731499104435,0.12549,207.57,207.47,14.6058]
[1731499104436,22.25160468,207.52,207.47,14.6058]
[1731499104635,27.07040468,207.52,207.47,12.1959]
[1731499104835,22.25160468,207.5,207.47,12.1959]
[1731499105052,22.25160468,207.5,207.44,6.0256]
[1731499106033,4.8195,207.49,207.44,6.0256]
[1731499106558,22.25160468,207.5,207.44,6.0256]
[1731499106743,18.73875787,207.51,207.44,6.0256]
[1731499107145,13.91955787,207.53,207.44,6.0256]
[1731499107450,18.73735787,207.56,207.44,6.0256]
[1731499107657,0.12549,207.55,207.44,6.0256]
[1731499108038,18.73785787,207.54,207.44,6.0256]
[1731499110237,13.91955787,207.5,207.44,6.0256]
[1731499110443,13.91955787,207.48,207.42,13.1444]
[1731499110954,0.12549,207.49,207.42,15.5549]
[1731499111156,4.8188,207.52,207.42,21.5813]
[1731499111449,0.12549,207.53,207.42,33.6341]
[1731499111647,0.12549,207.53,207.43,20.0]
[1731499112460,4.8188,207.52,207.44,8.4361]
[1731499113153,0.12549,207.49,207.42,13.1444]
[1731499113349,0.12549,207.49,207.42,15.5549]
[1731499113553,13.91955787,207.48,207.42,13.1444]
[1731499114344,4.8199,207.47,207.42,13.1444]
[1731499114653,14.04504787,207.46,207.42,13.1444]
[1731499117457,4.8204,207.45,207.42,13.1444]
[1731499119155,13.91955787,207.48,207.42,13.1444]
[1731499119458,13.91955787,207.46,207.42,19.1708]
[1731499119867,13.91955787,207.48,207.42,21.5813]
[1731499121379,4.8199,207.47,207.42,19.1708]
[1731499121660,13.91955787,207.44,207.42,13.1444]
[1731499121837,13.91955787,207.43,207.38,6.0275]
[1731499122044,13.91955787,207.41,207.37,12.3699]
[1731499123241,13.91955787,207.39,207.34,6.0285]
[1731499123580,18.74135787,207.39,207.34,6.0285]
[1731499123743,13.91955787,207.42,207.34,8.4399]
[1731499123948,13.91955787,207.44,207.34,8.4399]
[1731499124745,18.73925787,207.48,207.37,20.0]
[1731499125068,18.73925787,207.48,207.38,23.776884]
[1731499125955,18.73925787,207.48,207.39,8.4381]
[1731499125956,13.91955787,207.46,207.39,8.4381]
[1731499126159,13.91955787,207.44,207.32,25.0733]
[1731499126459,13.91955787,207.44,207.35,6.0282]
[1731499126842,22.28674512,207.43,207.35,6.0282]
[1731499127468,27.10764512,207.43,207.35,6.0282]
[1731499128956,22.28674512,207.43,207.36,23.776884]
[1731499129261,22.28674512,207.45,207.36,23.776884]
[1731499130562,4.8206,207.44,207.37,2.4111]
[1731499130750,4.8206,207.44,207.37,8.4389]
[1731499130947,22.28674512,207.43,207.37,6.0278]
[1731499131572,22.28674512,207.41,207.37,6.0278]
[1731499132451,22.28674512,207.41,207.37,8.4389]
[1731499132769,4.8212,207.42,207.33,8.4406]
[1731499133777,22.28674512,207.41,207.33,8.4406]
[1731499135158,27.10814512,207.41,207.33,8.4406]
[1731499138467,27.10714512,207.45,207.34,43.776884]
[1731499138865,22.28674512,207.47,207.35,45.6021]
[1731499139065,27.10674512,207.47,207.36,43.776884]
[1731499140362,27.10674512,207.47,207.37,8.4389]
[1731499140563,27.10674512,207.47,207.38,23.776884]
[1731499141266,22.28674512,207.47,207.4,23.776884]
[1731499141465,22.28674512,207.51,207.43,23.776884]
[1731499141767,22.38674512,207.6,207.43,23.776884]
[1731499141768,22.28674512,207.53,207.43,23.776884]
[1731499142872,27.10544512,207.53,207.44,8.4361]
[1731499143453,27.10544512,207.53,207.45,23.776884]
[1731499144276,27.10544512,207.53,207.46,8.4353]
[1731499145067,22.28674512,207.51,207.46,8.4353]
[1731499145266,22.28674512,207.51,207.46,6.0252]
[1731499146469,27.10594512,207.51,207.46,6.0252]
[1731499146976,22.28674512,207.49,207.43,2.4104]
[1731499148871,13.92176902,207.49,207.43,2.4104]
[1731499149555,18.74136902,207.49,207.43,2.4104]
[1731499149963,13.92176902,207.51,207.44,23.776884]
[1731499150163,13.92176902,207.53,207.44,23.776884]
[1731499150977,13.92176902,207.51,207.44,23.776884]
[1731499151173,13.92176902,207.51,207.45,8.4357]
[1731499151477,4.8189,207.52,207.45,8.4357]
[1731499152478,13.92176902,207.51,207.44,23.776884]
[1731499152779,13.92176902,207.51,207.43,23.776884]
[1731499153483,13.92176902,207.51,207.43,32.213384]
[1731499154182,18.74086902,207.51,207.43,32.213384]
[1731499155879,13.92176902,207.53,207.43,32.213384]
[1731499156077,13.92176902,207.53,207.45,23.776884]
[1731499156374,4.8183,207.54,207.45,23.776884]
[1731499157476,4.8183,207.54,207.46,8.4353]
[1731499157986,4.8183,207.54,207.47,23.776884]
[1731499159478,4.8183,207.54,207.48,2.4098]
[1731499159873,13.92176902,207.53,207.48,2.4098]
[1731499160592,32.0033,207.76,207.56,12.9156]
[1731499160778,13.92176902,207.73,207.63,32.9156]
[1731499160974,13.92176902,207.76,207.67,31.0744]
[1731499161167,4.8124,207.8,207.67,31.0744]
[1731499161168,13.92176902,207.78,207.68,43.776884]
[1731499162582,13.92176902,207.78,207.7,23.776884]
[1731499162778,22.21262613,207.78,207.7,23.776884]
[1731499163382,22.21262613,207.78,207.71,8.4252]
[1731499163573,22.21262613,207.79,207.71,8.4252]
[1731499167872,22.21262613,207.79,207.73,2.4069]
[1731499169374,22.21262613,207.79,207.72,13.2856]
[1731499169586,27.02522613,207.79,207.72,13.2856]
[1731499169788,27.02522613,207.79,207.72,15.6926]
[1731499176401,22.21262613,207.77,207.72,13.2856]
[1731499176586,22.21262613,207.75,207.72,13.2856]
[1731499176786,22.21262613,207.81,207.72,15.6926]
[1731499176985,22.21262613,207.81,207.72,21.7103]
[1731499177517,2.66158156,207.83,207.72,21.7103]
[1731499177518,22.21262613,207.77,207.72,19.3033]
[1731499178400,27.02562613,207.77,207.72,13.2856]
[1731499179704,22.21262613,207.81,207.72,21.7103]
[1731499180300,2.66158156,207.83,207.72,21.7103]
[1731499180301,27.50133543,207.83,207.73,23.776884]
[1731499181504,27.50133543,207.83,207.74,8.4239]
[1731499184299,27.02472613,207.81,207.74,8.4239]
[1731499185003,13.87992408,207.8,207.74,8.4239]
[1731499185814,13.87992408,207.8,207.74,6.0171]
[1731499186644,18.69232408,207.8,207.74,6.0171]
[1731499187415,0.4769093,207.83,207.74,6.0171]
[1731499187416,18.69192408,207.82,207.74,6.0171]
[1731499189003,0.4769093,207.83,207.74,6.0171]
[1731499189004,0.4769093,207.83,207.75,38.870984]
[1731499190002,0.4769093,207.83,207.76,8.4231]
[1731499190500,0.4769093,207.83,207.77,6.6008]
[1731499190711,0.4769093,207.83,207.78,23.776884]
[1731499192103,0.4769093,207.83,207.79,8.4218]
[1731499192504,0.4769093,207.83,207.8,43.776884]
[1731499193497,0.4769093,207.83,207.81,8.4211]
[1731499194422,0.4769093,207.83,207.81,6.0151]
[1731499197015,0.4769093,207.83,207.78,2.4063]
[1731499197713,5.2885093,207.83,207.78,2.4063]
[1731499198222,13.87992408,207.82,207.77,15.0232]
[1731499198708,13.87992408,207.82,207.77,6.6008]
[1731499198907,13.87992408,207.8,207.77,6.6008]
[1731499199111,0.12549,207.82,207.77,6.6008]
[1731499199112,13.87992408,207.79,207.77,6.6008]
[1731499199705,13.87992408,207.78,207.77,6.6008]
[1731499199909,20.12549,207.77,207.66,6.4266]
[1731499200104,13.87992408,207.71,207.66,6.4266]
[1731499200307,13.87992408,207.75,207.66,8.8342]
[1731499200707,13.87992408,207.73,207.66,8.8342]
[1731499201401,13.87992408,207.73,207.66,14.8536]
[1731499201646,13.87992408,207.71,207.66,14.8536]
[1731499202519,4.8133,207.76,207.66,14.8536]
[1731499202837,13.87992408,207.74,207.66,14.8536]
[1731499203538,13.87992408,207.75,207.67,20.0]
[1731499205119,14.00541408,207.77,207.68,8.4263]
[1731499205315,14.00541408,207.77,207.67,20.0]
[1731499206137,13.87992408,207.75,207.67,20.0]
[1731499206928,13.87992408,207.73,207.66,6.4266]
[1731499207309,13.87992408,207.71,207.66,6.4266]
[1731499207713,13.87992408,207.72,207.66,6.4266]
[1731499208113,0.12549,207.77,207.66,6.4266]
[1731499208114,13.87992408,207.71,207.66,6.4266]
[1731499208335,0.12549,207.77,207.66,6.4266]
[1731499208336,13.87992408,207.7,207.66,6.4266]
[1731499209021,0.12549,207.77,207.66,6.4266]
[1731499209223,13.87992408,207.75,207.66,6.4266]
[1731499209915,13.87992408,207.74,207.66,6.4266]
[1731499210418,13.87992408,207.73,207.66,6.4266]
[1731499210844,13.87992408,207.76,207.66,6.4266]
[1731499211015,13.87992408,207.75,207.66,6.4266]
[1731499212053,13.87992408,207.7,207.66,6.4266]
[1731499212334,13.87992408,207.68,207.66,6.4266]
[1731499212927,13.87992408,207.67,207.66,6.4266]
[1731499213540,13.87992408,207.7,207.66,6.4266]
[1731499213846,13.87992408,207.72,207.66,6.4266]
[1731499214054,0.83549855,207.82,207.66,6.4266]
[1731499214220,13.87992408,207.79,207.66,6.4266]
[1731499214423,13.87992408,207.8,207.68,22.6312]
[1731499214641,13.87992408,207.8,207.76,1.0]
[1731499219449,13.87992408,207.78,207.76,1.0]
[1731499220353,0.12549,207.77,207.68,22.6312]
[1731499220558,13.87992408,207.72,207.68,22.6312]
[1731499220855,13.87992408,207.74,207.68,22.6312]
[1731499222437,13.87992408,207.8,207.68,6.172]
[1731499222438,13.87992408,207.7,207.68,6.172]
[1731499224053,13.87992408,207.7,207.59,6.1325]
[1731499224235,13.87992408,207.65,207.59,6.1325]
[1731499225856,16.01955956,207.7,207.59,6.1325]
[1731499225857,13.87992408,207.63,207.59,6.1325]
[1731499226063,13.87992408,207.61,207.59,6.1325]
[1731499227159,13.87992408,207.65,207.59,6.1325]
[1731499229044,13.87992408,207.67,207.59,6.1325]
[1731499229763,13.87992408,207.65,207.59,6.1325]
[1731499231355,13.87992408,207.63,207.59,6.1325]
[1731499232443,13.87992408,207.61,207.59,6.1325]
[1731499232836,16.4397,207.73,207.59,6.1325]
[1731499233163,13.87992408,207.68,207.59,6.1325]
[1731499234258,13.87992408,207.66,207.59,6.1325]
[1731499234640,13.87992408,207.68,207.59,6.1325]
[1731499235654,13.87992408,207.66,207.59,6.1325]
[1731499236356,13.87992408,207.7,207.6,20.0]
[1731499236664,13.87992408,207.74,207.63,6.6132]
[1731499239349,13.87992408,207.76,207.63,6.6132]
[1731499239559,13.87992408,207.72,207.63,6.6132]
[1731499239868,13.87992408,207.8,207.63,6.6132]
[1731499239869,13.87992408,207.68,207.63,6.6132]
[1731499243752,13.87992408,207.72,207.63,6.6132]
[1731499244077,23.23338878,207.83,207.63,6.6132]
[1731499244370,13.87992408,207.74,207.67,6.3621]
[1731499245055,17.97159125,207.83,207.67,6.3621]
[1731499245258,13.87992408,207.78,207.67,6.3621]
[1731499245452,4.8126,207.79,207.68,8.4263]
[1731499246458,0.4769093,207.83,207.72,20.0]
[1731499246749,0.4769093,207.83,207.73,22.9854]
[1731499247475,4.8118,207.82,207.74,8.4239]
[1731499247765,14.00541408,207.81,207.74,8.4239]
[1731499248143,13.87992408,207.79,207.73,22.9854]
[1731499248356,13.87992408,207.77,207.73,22.9854]
[1731499248557,13.87992408,207.75,207.73,6.4423]
[1731499249376,0.12549,207.74,207.68,16.5431]
[1731499249676,13.87992408,207.7,207.67,6.4423]
[1731499249972,4.8139,207.73,207.67,6.4423]
[1731499249973,13.87992408,207.68,207.67,6.4423]
[1731499250758,0.12549,207.69,207.67,6.4423]
[1731499251366,33.87992408,207.74,207.67,8.8498]
[1731499251566,33.87992408,207.74,207.67,14.8689]
[1731499251762,13.87992408,207.78,207.67,14.8689]
[1731499252161,13.87992408,207.78,207.68,16.0793]
[1731499252369,13.87992408,207.8,207.68,16.0793]
[1731499252682,0.12549,207.79,207.68,16.0793]
[1731499252855,22.20907737,207.8,207.68,16.0793]
[1731499253055,22.20907737,207.76,207.68,16.0793]
[1731499253468,22.20907737,207.76,207.69,2.4074]
[1731499253952,27.02237737,207.76,207.69,2.4074]
[1731499255277,22.20907737,207.74,207.68,16.0793]
[1731499255660,22.20907737,207.74,207.68,18.9683]
[1731499257575,4.93899,207.75,207.68,26.1909]
[1731499257776,0.12549,207.75,207.68,26.1909]
[1731499259271,4.93909,207.75,207.68,26.1909]
[1731499260867,22.20907737,207.74,207.68,23.3019]
[1731499261185,22.20907737,207.74,207.68,26.1909]
[1731499261360,22.20907737,207.7,207.67,6.4423]
[1731499263686,22.20907737,207.7,207.63,15.5599]
[1731499263687,0.12549,207.67,207.63,15.5599]
[1731499263984,22.20907737,207.66,207.63,15.5599]
[1731499264570,27.02337737,207.72,207.63,25.6739]
[1731499265075,22.20907737,207.72,207.63,25.6739]
[1731499265685,22.20907737,207.78,207.64,6.3901]
[1731499265887,27.02087737,207.82,207.66,6.3901]
[1731499266091,22.68598667,207.83,207.68,6.3901]
[1731499266383,22.68598667,207.83,207.74,6.3901]
[1731499266384,0.4769093,207.83,207.74,6.3901]
[1731499267088,0.4769093,207.83,207.75,10.1082]
[1731499267984,0.4769093,207.83,207.75,24.5486]
[1731499268774,0.4769093,207.83,207.76,6.2177]
[1731499268975,0.4769093,207.83,207.77,10.1073]
[1731499270977,22.68598667,207.83,207.77,7.2195]
[1731499271183,22.20907737,207.79,207.76,6.2177]
[1731499271378,22.20907737,207.78,207.76,6.2177]
[1731499272089,22.20907737,207.79,207.76,6.2177]
[1731499272798,0.12549,207.76,207.7,6.2728]
[1731499272974,22.20907737,207.72,207.7,6.2728]
[1731499273170,20.0,207.71,207.65,13.2789]
[1731499273375,22.20907737,207.72,207.65,16.1683]
[1731499274395,22.20907737,207.76,207.65,16.1683]
[1731499274893,22.20907737,207.74,207.66,23.776884]
[1731499275270,22.20907737,207.74,207.65,16.1683]
[1731499275473,22.20907737,207.74,207.66,23.776884]
[1731499276286,22.20907737,207.74,207.67,10.112]
[1731499276678,22.20907737,207.76,207.67,10.112]
[1731499277492,22.20907737,207.78,207.68,23.776884]
[1731499278074,22.20907737,207.74,207.67,10.112]
[1731499280078,22.20907737,207.76,207.67,10.112]
[1731499281496,22.20907737,207.74,207.67,10.112]
[1731499281884,22.20907737,207.76,207.67,10.112]
[1731499282986,22.20907737,207.74,207.67,10.112]
[1731499284281,22.20907737,207.72,207.67,7.2229]
[1731499284477,22.20907737,207.7,207.65,6.0553]
[1731499284789,22.20907737,207.7,207.65,8.9447]
[1731499285188,22.20907737,207.7,207.65,6.0553]
[1731499286789,27.02387737,207.7,207.65,6.0553]
[1731499288107,22.20907737,207.68,207.65,6.0553]
[1731499289887,0.12549,207.67,207.65,6.0553]
[1731499290093,22.20907737,207.66,207.65,6.0553]
[1731499290291,27.02437737,207.68,207.65,6.0553]
[1731499290792,18.71158227,207.68,207.65,6.0553]
[1731499291785,13.89628227,207.66,207.65,6.0553]
[1731499292407,13.89628227,207.67,207.65,6.0553]
[1731499293005,18.71158227,207.68,207.65,6.0553]
[1731499293689,13.89628227,207.66,207.65,6.0553]
[1731499294807,13.89628227,207.66,207.59,13.8755]
[1731499295009,13.89628227,207.68,207.59,16.7658]
[1731499295203,0.83596261,207.74,207.63,23.776884]
[1731499295413,13.89628227,207.76,207.63,23.776884]
[1731499295621,13.89628227,207.76,207.65,23.776884]
[1731499295798,13.89628227,207.75,207.65,23.776884]
[1731499296207,0.83416514,207.78,207.65,23.776884]
[1731499296208,13.89628227,207.74,207.65,23.776884]
[1731499296828,18.70978227,207.75,207.66,10.1126]
[1731499299116,38.70948227,207.77,207.66,10.1126]
[1731499299325,33.89628227,207.77,207.68,6.2029]
[1731499299501,38.70928227,207.77,207.68,6.2029]
[1731499301099,38.70928227,207.77,207.69,10.1112]
[1731499303723,38.70928227,207.77,207.69,10.1112]
[1731499304016,2.14092106,207.8,207.7,23.776884]
[1731499304327,13.89628227,207.81,207.7,23.776884]
[1731499304801,18.70838227,207.81,207.7,23.776884]
[1731499304999,13.89628227,207.81,207.71,15.7885]
[1731499305298,13.89628227,207.81,207.73,6.0295]
[1731499305507,13.89628227,207.79,207.73,6.0295]
[1731499305728,13.89628227,207.79,207.73,8.9177]
[1731499306103,4.8124,207.8,207.73,8.9177]
[1731499306632,4.8124,207.8,207.73,16.1386]
[1731499308615,38.83357227,207.82,207.73,16.1386]
[1731499308820,41.0111296,207.82,207.73,16.1386]
[1731499309000,13.89628227,207.79,207.73,6.0295]
[1731499309201,13.89628227,207.75,207.73,6.0295]
[1731499310220,13.89628227,207.74,207.73,6.0295]
[1731499310415,20.0,207.73,207.67,6.6603]
[1731499310613,18.71038227,207.72,207.67,6.6603]
[1731499311125,15.9239,207.81,207.67,6.6603]
[1731499311126,145.5553,207.86,207.67,31.2182]
[1731499311321,18.70808227,207.82,207.67,24.5579]
[1731499311535,18.70808227,207.82,207.69,6.3376]
[1731499311734,18.70808227,207.82,207.7,23.776884]
[1731499311948,13.89628227,207.81,207.7,23.776884]
[1731499312402,18.70848227,207.81,207.71,10.1102]
[1731499312807,13.89628227,207.8,207.71,10.1102]
[1731499313414,20.0,207.79,207.71,10.1102]
[1731499313732,13.89628227,207.78,207.71,10.1102]
[1731499315034,18.70908227,207.78,207.71,7.2216]
[1731499315343,13.89628227,207.74,207.69,6.3376]
[1731499315541,0.1,207.82,207.69,30.8933]
[1731499315542,13.89628227,207.82,207.69,30.8933]
[1731499315845,0.4769093,207.83,207.71,6.2742]
[1731499316213,5.2885093,207.83,207.71,6.2742]
[1731499316515,0.4769093,207.83,207.72,23.776884]
[1731499317226,0.4769093,207.83,207.73,24.551]
[1731499317427,0.4769093,207.83,207.74,23.776884]